{"text_format":"1","workbook":"xlsx","n_sheets":5,"sheets":["Cover","Report","Footnotes","Stacked&Idle","Disclaimers&Definitions "],"not_rendered":{"charts":0,"images":8,"macros":0,"external_links":0,"defined_names":18,"comments":0,"pivot_tables":0},"unopened":[],"bounds":{"document_bytes":16777216,"sheet_cells":100000,"rows_first":2000,"rows_last":500,"rows_between":2000,"halvings":0,"cell_chars":16384,"cell_head_chars":4096},"cells_cut":0,"cells_raw":0,"read":"whole","date_system":"1900"}

{"sheet":"Cover","index":0,"n_rows":11,"n_cols":1,"rows_kept":11,"cut":false,"hidden":false,"merged":[]}
[]
[]
[]
[]
[]
[]
[]
[]
[]
[]
[" "]

{"sheet":"Report","index":1,"n_rows":199,"n_cols":19,"rows_kept":199,"cut":false,"hidden":false,"merged":[[2,0,2,12],[3,0,3,12],[6,15,6,18],[5,14,5,18],[188,0,188,12]]}
[]
["Updated: January 17, 2013"]
["Revisions Noted in Bold"]
["Dynamically positioned «"]
[]
[null,null,null,null,"Yr. (1)","Water","Drilling ",null,null,"Estimated","Estimated","Dayrate on","Dayrate on",null,"Estimated Out of Service Days (4)"]
[null,"Footnote ","Floater","Dynamically","Entered","Depth","Depth",null,null," Contract","Expiration","Current Contract (3)","Previous Contract (3)",null,2012,2013]
["Rig Type/Name","References","Type","Positioned","Service","(Feet)","(Feet)","Location","Customer","Start Date (2)"," Date (2)","(Dollars)","(Dollars)",null,"Q4","Q1","Q2","Q3","Q4"]
[]
["Rigs Under Construction (9)"]
[]
["Deepwater Asgard",-22,"ship","«","TBA",12000,40000,null,null,null,null,null,"N/A",null,0,0,0,0,0]
["Deepwater Invictus",-11,"ship","«","TBA",12000,40000,"USGOM","TBA","Q2 2014","Q2 2017",595000,"N/A",null,0,0,0,0,0]
["DSME 12000 Drillship TBN1","(6), (11)","ship","«","TBA",12000,40000,"TBA","Shell","Q4 2015","Q4 2025",519000,"N/A",null,0,0,0,0,0]
["DSME 12000 Drillship TBN2","(6), (11)","ship","«","TBA",12000,40000,"TBA","Shell","Q2 2016","Q2 2026",519000,"N/A",null,0,0,0,0,0]
["DSME 12000 Drillship TBN3","(6), (11)","ship","«","TBA",12000,40000,"TBA","Shell","Q4 2016","Q4 2026",519000,"N/A",null,0,0,0,0,0]
["DSME 12000 Drillship TBN4","(6), (11)","ship","«","TBA",12000,40000,"TBA","Shell","Q1 2017","Q1 2027",519000,"N/A",null,0,0,0,0,0]
["Transocean Siam Driller","(6), (11)",null,null,"TBA",350,35000,"Thailand","Chevron","Q1 2013","Q1 2018",135000,"N/A",null,0,0,0,0,0]
["Transocean Andaman","(6), (11)",null,null,"TBA",350,35000,"Thailand","Chevron","Q2 2013","Q2 2016",145000,"N/A",null,0,0,0,0,0]
["Transocean Ao Thai","(6), (11)",null,null,"TBA",350,35000,"Thailand","Chevron","Q4 2013","Q4 2018",135000,"N/A",null,0,0,0,0,0]
[]
["High Specification Floater: Ultra-Deepwater (27)"]
[]
["Discoverer Americas",-6,"ship","«",2009,12000,40000,"USGOM","Statoil","2011-03-01","2014-03-01",509000,486000,null,0,0,0,0,0]
[null,-6,null,null,null,null,null,"USGOM","Statoil","2014-04-01","2016-05-01",600000,509000]
["Deepwater Champion",-6,"ship","«",2011,12000,40000,"USGOM","ExxonMobil","2012-06-01","2015-11-01",666000,655000,null,0,0,0,0,10]
["Discoverer Clear Leader"," (6), (13)","ship","«",2009,12000,40000,"USGOM","Chevron","2010-09-01","2014-08-01",561000,503000,null,0,0,0,0,0]
["Discoverer Inspiration",-6,"ship","«",2010,12000,40000,"USGOM","Chevron","2010-09-01","2015-03-01",517000,494000,null,0,0,0,0,0]
["Dhirubhai Deepwater KG1",null,"ship","«",2009,12000,35000,"India","Reliance","2009-08-01","2014-07-01",510000,"N/A",null,0,0,0,0,0]
["Dhirubhai Deepwater KG2",null,"ship","«",2010,12000,35000,"India","Reliance","2012-03-01","2015-02-01",510000,573000,null,0,0,0,0,0]
["Discoverer India",-15,"ship","«",2010,12000,40000,"USGOM","Reliance","2011-08-01","2013-09-01",499000,508000,null,0,0,0,0,12]
[null,null,null,null,null,null,null,"India","Reliance","2013-09-01","2021-03-01",508000,499000]
["Petrobras 10000"," (6), (7), (8)","ship","«",2009,12000,37500,"Brazil","Petrobras","2011-02-01","2019-08-01",419000,"N/A",null,0,0,0,0,0]
["Discoverer Deep Seas",-6,"ship","«",2001,10000,35000,"USGOM","Chevron","2011-02-01","2013-02-01",456000,517000,null,0,0,12,0,0]
[null,null,null,null,null,null,null,"USGOM","Murphy Oil","2013-03-01","2016-03-01",595000,{"$f":"L34","v":456000}]
["Discoverer Enterprise",-6,"ship","«",1999,10000,35000,"USGOM","BP","2011-01-01","2013-01-01",439000,523000,null,0,0,0,0,0]
[null,-6,null,null,null,null,null,"USGOM","BP","2013-01-01","2014-01-01",492000,439000]
["Discoverer Spirit","(6), (16)","ship","«",2000,10000,35000,"USGOM","Anadarko","2012-07-01","2014-05-01",546000,564000,null,0,0,0,7,0]
["GSF C.R. Luigs",-6,"ship","«",2000,10000,35000,"USGOM","BHP Billiton","2011-12-01","2014-02-01",532000,411000,null,0,0,10,0,0]
["GSF Jack Ryan",-6,"ship","«",2000,10000,35000,"Nigeria","Total","2009-06-01","2014-07-01",425000,297000,null,0,0,0,0,0]
["Deepwater Discovery"," (6), (7)","ship","«",2000,10000,30000,"Brazil","BP","2011-08-01","2013-08-01","463,000",425000,null,0,0,0,21,0]
["Deepwater Frontier",-6,"ship","«",1999,10000,30000,"Australia ","ExxonMobil","2012-03-01","2014-05-01",475000,477000,null,0,0,0,0,0]
["Deepwater Millennium",-6,"ship","«",1999,10000,30000,"Kenya","Anadarko","2012-12-01","2013-06-01",570000,545000,null,0,0,0,0,0]
[null,-6,null,null,null,null,null,"Mozambique","Anadarko","2013-06-01","2013-08-01",545000,570000]
["Deepwater Pathfinder",-6,"ship","«",1998,10000,30000,"USGOM","Eni","2010-08-01","2015-04-01",674000,550000,null,0,0,0,12,0]
["Deepwater Expedition",null,"ship","«",1999,8500,30000,"TBA","TBA","2012-11-01","2014-11-01",650000,640000,null,63,0,0,0,0]
["Cajun Express"," (6), (7)","semi","«",2001,8500,35000,"Brazil","Petrobras","2010-05-01","2013-07-01",515000,493000,null,0,11,0,0,0]
["Deepwater Nautilus","(6), (8)","semi",null,2000,8000,30000,"USGOM","Shell","2012-08-01","2017-08-01",525000,551000,null,0,0,0,0,0]
["GSF Explorer",null,"ship","«","1972/1998",7800,30000,null,null,null,null,null,null,null,92,19,0,0,0]
["Discoverer Luanda"," (6), (14)","ship","«",2010,7500,40000,"Angola","BP","2011-01-01","2018-02-01",470000,"N/A",null,0,0,0,0,0]
["GSF Development Driller I","(6), (21)","semi","«",2005,7500,37500,"USGOM","BHP Billiton","2012-10-01","2014-08-01",580000,525000,null,0,0,47,24]
["GSF Development Driller II",-6,"semi","«",2005,7500,37500,"USGOM","BP","2008-11-01","2013-11-01",594000,208000,null,0,0,0,0,7]
["Development Driller III",-6,"semi","«",2009,7500,37500,"USGOM","BP","2009-11-01","2016-11-01",415000,"N/A",null,0,0,0,0,0]
["Sedco Energy",null,"semi","«",2001,7500,35000,"Ghana","Tullow","2011-10-01","2013-11-01",440000,"N/A",null,0,7,0,0,0]
["Sedco Express",-7,"semi","«",2001,7500,35000,"Nigeria","ENI","2013-01-01","2014-10-01",600000,500000,null,0,41,0,0,0]
[]
[null,null,null,null,null,null,null,null,null,null,null,null,"Total Estimated Days Out of Service",null,{"$f":"SUM(O24:O55)","v":155},{"$f":"SUM(P24:P55)","v":78},{"$f":"SUM(Q24:Q55)","v":69},{"$f":"SUM(R24:R55)","v":64},{"$f":"SUM(S24:S55)","v":29}]
[null,null,null,null,null,null,null,null,null,null,null,null,"Estimated Average Contract Dayrate(5)",null,516000,524000,527000,528000,531000]
[]
["High Specification Floater: Deepwater (14)"]
[]
["Deepwater Navigator"," (7), (8), (17)","ship","«","1971/2000",7200,25000,"Brazil","Petrobras","2011-05-01","2016-02-01",364000,190000,null,0,0,0,0,0]
["Discoverer Seven Seas",null,"ship","«","1976/1997",7000,25000,"Sri Lanka","Cairn Energy","2013-01-01","2013-03-01",490000,445000,null,46,31,14,0,0]
[null,null,null,null,null,null,null,"Indonesia","Inpex","2013-05-01","2013-11-01",500000,490000]
["Transocean Marianas",-8,"semi",null,"1979/1998",7000,30000,"Namibia","HRT","2013-02-01","2013-11-01",530000,456000,null,0,51,0,0,0]
["Sedco 706"," (6), (7)","semi","«","1976/1994/ 2008",6500,25000,"Brazil","Chevron","2009-04-01","2014-04-01",311000,"N/A",null,0,0,0,0,0]
["Sedco 702","(6), (7), (21)","semi","«","1973/2007",6500,25000,"Nigeria","Shell","2012-09-01","2016-01-01",461000,357000,null,8,0,0,0,92]
["Sedco 707","(7), (8), (17), (21)","semi","«","1976/1997",6500,25000,"Brazil","Petrobras","2009-11-01","2014-11-01",382000,188000,null,92,90,79,0,0]
["GSF Celtic Sea",-6,"semi",null,"1982/1998",5750,25000,"Angola","ExxonMobil","2012-08-01","2013-08-01",324000,"320,000",null,0,0,0,0,0]
[null,-6,null,null,null,null,null,"Angola","ExxonMobil","2013-08-01","2014-08-01",328000,324000]
[null,-6,null,null,null,null,null,"Angola","ExxonMobil","2014-08-01","2014-09-01",332000,328000]
["Jack Bates",null,"semi",null,"1986/1997",5400,30000,"Australia","Santos","2012-07-01","2013-06-01",380000,380000,null,0,0,0,0,0]
["Sedco 709",null,"semi","«","1977/1999",5000,25000,"Malaysia",null,null,"Stacked",null,null,null,0,0,0,0,0]
["M.G. Hulme, Jr.","(7), (21)","semi",null,"1983/1996",5000,25000,"India","ONGC","2011-09-01","2013-08-01",212000,"N/A",null,0,0,0,21,77]
["Transocean Richardson",null,"semi",null,1988,5000,25000,"Malaysia",null,null,"Stacked",null,null,null,0,0,0,0,0]
["Sedco 710"," (7), (8), (17)","semi","«","1983/2001",4500,25000,"Brazil","Petrobras","2010-10-01","2016-09-01",277000,128000,null,0,0,0,0,21]
["Transocean Rather",null,"semi",null,1988,4500,25000,"Angola","ExxonMobil","2012-10-01","2013-06-01",350000,437000,null,39,0,0,0,0]
["Sovereign Explorer",null,"semi",null,1984,4500,25000,"USGOM",null,null,"Stacked",null,null,null,0,0,0,0,0]
[]
[null,null,null,null,null,null,null,null,null,null,null,null,"Total Estimated Days Out of Service",null,{"$f":"SUM(O62:O78)","v":185},172,93,21,190]
[null,null,null,null,null,null,null,null,null,null,null,null,"Estimated Average Contract Dayrate(5)",null,351000,353000,359000,378000,379000]
[]
["High Specification Floater: Harsh Environment (7)"]
[]
["Transocean Barents"," (6), (7),(19)","semi","«",2009,10000,30000,"NNS","DNO","2012-07-01","2013-01-01",512000,552000,null,0,0,0,0,0]
[null,"(6), (7)",null,null,null,null,null,"NNS","DNO","2013-01-01","2014-07-01",569000,{"$f":"L85","v":512000}]
["Transocean Spitsbergen"," (6), (7), (18)","semi","«",2010,10000,30000,"NNS","Statoil","2011-10-01","2013-07-01",505000,"N/A",null,0,0,0,0,0]
[null,"(6), (7)",null,null,null,null,null,"NNS","Statoil","2013-07-01","2015-07-01",547000,505000]
["Henry Goodrich",-6,"semi",null,"1985/2007",5000,30000,"Canada","Husky","2010-10-01","2014-04-01",346000,381000,null,91,5,0,0,0]
["Transocean Leader","(6), (7)","semi",null,"1987/1997",4500,25000,"NNS","Statoil","2012-03-01","2015-03-01",417000,469000,null,92,3,0,0,0]
["Paul B. Loyd, Jr."," (6), (7)","semi",null,1990,2000,25000,"UKNS","BP","2012-03-01","2013-09-01",346000,517000,null,0,0,0,0,0]
[null,"(6), (7)",null,null,null,null,null,"UKNS","BP","2013-09-01","2015-03-01",442000,346000]
["Transocean Arctic"," (6), (7)","semi",null,1986,1650,25000,"NNS","Rig Management Norway","2012-07-01","2013-09-01",432000,292000,null,0,0,0,0,0]
[null,"(6), (7)",null,null,null,null,null,"NNS","Rig Management Norway",{"$f":"+K93","v":"2013-09-01"},"2014-07-01",424000,{"$f":"L93","v":432000}]
["Polar Pioneer"," (6), (7)","semi",null,1985,1500,25000,"NNS","Statoil","2010-02-01","2014-01-01",530000,309000,null,0,0,0,0,0]
[]
[null,null,null,null,null,null,null,null,null,null,null,null,"Total Estimated Days Out of Service",null,{"$f":"SUM(O85:O95)","v":183},8,0,0,0]
[null,null,null,null,null,null,null,null,null,null,null,null,"Estimated Average Contract Dayrate(5)",null,457000,453000,453000,460000,463000]
[]
["Midwater Floaters (25)"]
[]
["Sedco 700",null,"semi",null,"1973/1997",3600,25000,"Malaysia",null,null,"Stacked",null,null,null,0,0,0,0,0]
["Transocean Legend",null,"semi",null,1983,3500,25000,"Australia ","Conoco Phillips","2012-03-01","2013-10-01",293000,300000,null,0,0,45,0,0]
["Transocean Amirante",null,"semi",null,"1978/1997",3500,25000,"Egypt","Burullus Gas Company","2012-12-01","2013-06-01",305000,275000,null,0,0,7,92,33]
["GSF Arctic I"," (6), (7)","semi",null,"1983/1996",3400,25000,null,null,null,"Idle",null,null,null,0,0,0,0,0]
["C. Kirk Rhein, Jr.",null,"semi",null,"1976/1997",3300,25000,"Malaysia",null,null,"Stacked",null,null,null,0,0,0,0,0]
["Transocean Driller"," (7), (8)","semi",null,1991,3000,25000,"Brazil","Petrobras","2010-07-01","2016-07-01",258000,116000,null,0,12,0,0,0]
["GSF Rig 135",-21,"semi",null,1983,2800,25000,"Nigeria","ENI","2012-05-01","2013-03-01",340000,260000,null,0,0,86,0,0]
[null,null,null,null,null,null,null,"Congo","Total","2013-06-01","2015-06-01",365000,340000]
["GSF Rig 140"," (6)","semi",null,1983,2800,25000,"India","ONGC","2012-03-01","2014-04-01",260000,"N/A",null,0,0,0,0,0]
["Falcon 100"," (7), (8)","semi",null,"1974/1999",2400,25000,"Brazil","Petrobras","2008-03-01","2013-03-01",236000,180000,null,0,0,0,0,0]
["GSF Aleutian Key",null,"semi",null,"1976/1999/\n2001",2300,25000,"Gabon",null,null,"Stacked",null,null,null,0,0,0,0,0]
["Sedco 703",null,"semi",null,"1973/1995",2000,25000,"Malaysia",null,null,"Stacked",null,null,null,0,0,0,0,0]
["Sedco 711","(6), (20), (21)","semi",null,1982,1800,25000,"UKNS","Talisman","2012-11-01","2013-07-01",275000,265000,null,0,0,0,64,66]
[null,-6,null,null,null,null,null,"UKNS","Talisman","2013-11-01","2015-11-01",350000,275000,null,0,0,0,0,0]
["Transocean John Shaw","(7), (12), (21)","semi",null,1982,1800,25000,"UKNS","Taqa","2012-12-01","2013-09-01",320000,274000,null,0,0,0,0,31]
[null,-7,null,null,null,null,null,"UKNS","EOG","2013-09-01","2013-09-01",320000,320000]
[null,-7,null,null,null,null,null,"UKNS","Taqa","2013-10-01","2013-11-01",360000,320000]
[null,-7,null,null,null,null,null,"UKNS","Taqa","2014-03-01","2015-02-01",360000,360000]
["GSF Arctic III",-7,"semi",null,1984,1800,25000,"UKNS","ATP Oil & Gas","2012-12-01","2013-02-01",335000,315000,null,0,0,0,0,0]
[null,"(6), (7)",null,null,null,null,null,"UKNS","ATP Oil & Gas",{"$f":"+K120","v":"2013-02-01"},"2014-12-01",315000,335000]
["Sedco 712",-21,"semi",null,1983,1600,25000,null,null,null,null,null,null,null,0,70,91,92,0]
["Sedco 714",-7,"semi",null,"1983/1997",1600,25000,"UKNS","Total","2012-12-01","2013-12-01",398000,398000,null,0,0,0,0,0]
[null,"(6), (7)",null,null,null,null,null,"UKNS","Total","2014-04-01","2015-10-01",435000,398000]
["GSF Grand Banks","(6), (8), (12), (21)","semi",null,1984,1500,25000,"Canada","Husky","2013-01-01","2015-09-01",410000,297000,null,0,0,0,0,35]
["Actinia",null,"semi",null,1982,1500,25000,"India","ONGC","2012-06-01","2015-07-01",190000,222000,null,0,0,0,0,0]
["Sedco 601",null,"semi",null,1983,1500,25000,"Malaysia",null,null,"Stacked",null,null,null,0,0,0,0,0]
["Sedneth 701",-7,"semi",null,"1972/1993",1500,25000,"Nigeria","NPDC","2012-09-01","2013-09-01",311000,275000,null,0,0,0,0,0]
["Transocean Winner"," (6), (7)","semi",null,1983,1500,25000,"NNS","Lundin","2010-04-01","2013-01-01",495000,390000,null,0,0,0,0,0]
[null," (6), (7)",null,null,null,null,null,"NNS","Marathon",{"$f":"+K129","v":"2013-01-01"},"2015-01-01",465000,495000]
["Transocean Searcher"," (6), (7), (21)","semi",null,"1983/1988",1500,25000,"NNS","BG","2012-06-01","2015-06-01",402000,447000,null,0,0,90,0,0]
["Transocean Prospect"," (7), (17)","semi",null,"1983/1992",1500,25000,"UKNS","Nexen","2011-06-01","2013-02-01",247000,"N/A",null,0,0,0,0,0]
[null,-7,null,null,null,null,null,"UKNS","Nexen","2013-02-01","2013-08-01",253000,247000]
[null,"(6), (7)",null,null,null,null,null,"UKNS","Conoco Phillips","2014-02-01","2014-10-01",405000,253000]
[null,"(6), (7)",null,null,null,null,null,"UKNS","Conoco Phillips",{"$f":"K134","v":"2014-10-01"},"2015-02-01",375000,405000]
["J.W. McLean",null,"semi",null,"1974/1996",1250,25000,"UKNS",null,null,"Stacked",null,null,null,0,0,0,0,0]
["Sedco 704","(7), (21)","semi",null,"1974/1993",1000,25000,"UKNS","Chevron","2012-11-01","2013-02-01",335000,310000,null,0,53,67,0,0]
[null,"(6), (7)",null,null,null,null,null,"UKNS","Maersk","2013-05-01","2015-05-01",355000,335000]
[]
[null,null,null,null,null,null,null,null,null,null,null,null,"Total Estimated Days Out of Service",null,{"$f":"SUM(O102:O138)","v":0},{"$f":"SUM(P102:P138)","v":135},{"$f":"SUM(Q102:Q138)","v":386},{"$f":"SUM(R102:R138)","v":248},{"$f":"SUM(S102:S138)","v":165}]
[null,null,null,null,null,null,null,null,null,null,null,null,"Estimated Average Contract Dayrate(5)",null,295000,316000,314000,329000,336000]
[]
["High Specification Jackups (9)"]
[]
["GSF Constellation I",-6,null,null,2003,400,30000,"Indonesia","Total","2012-09-01","2015-12-01",150000,140000,null,89,0,0,0,28]
["GSF Constellation II",-6,null,null,2004,400,30000,"Gabon","Total","2012-10-01","2015-06-01",160000,109000,null,67,5,0,0,0]
["GSF Galaxy I",-7,null,null,"1991/2001",400,30000,"UKNS","Nexen","2012-07-01","2013-09-13",133000,"N/A",null,0,0,0,0,0]
["GSF Galaxy II",-7,null,null,1998,400,30000,"UKNS","GDF Suez","2012-12-01","2014-01-01",194000,173000,null,0,0,0,26,66]
[null,-7,null,null,null,null,null,"UKNS","GDF Suez","2014-01-01","2014-04-01",210000,194000]
[null,-7,null,null,null,null,null,"UKNS","GDF Suez","2014-04-01","2014-12-29",220000,210000]
["GSF Galaxy III"," (6), (7)",null,null,1999,400,30000,"UKNS","Nexen","2012-01-01","2013-07-01",150000,109000,null,0,0,0,0,0]
[null,-7,null,null,null,null,null,"UKNS","Nexen","2013-07-01","2014-04-01",221000,{"$f":"L151","v":150000}]
["GSF Magellan",null,null,null,1992,350,30000,"Nigeria","ExxonMobil","2012-11-01","2013-05-01",160000,143000,null,0,0,0,0,0]
["GSF Monarch","(6), (7)",null,null,1986,350,30000,"Denmark","Maersk Oil","2011-07-01","2013-10-01",95000,"N/A",null,4,0,0,0,49]
[null,"(6), (7)",null,null,null,null,null,"UKNS","GDF Suez","2013-12-01","2015-06-01",162000,95000]
["GSF Monitor",-12,null,null,1989,350,30000,"Nigeria","NPDC","2012-09-01","2013-10-01",153000,118000,null,0,0,0,0,61]
["Transocean Honor",-6,null,null,2012,400,30000,"Angola","Chevron","2012-05-01","2015-05-01",149000,"N/A",null,0,0,0,0,0]
[null,null,null,null,null,null,null,null,null,null,null,null,"Total Estimated Days Out of Service",null,{"$f":"SUM(O145:O157)","v":160},{"$f":"SUM(P145:P157)","v":5},{"$f":"SUM(Q145:Q157)","v":0},{"$f":"SUM(R145:R157)","v":26},{"$f":"SUM(S145:S157)","v":204}]
[null,null,null,null,null,null,null,null,null,null,null,null,"Estimated Average Contract Dayrate(5)",null,156000,149000,147000,151000,155000]
[]
[]
[]
[]
[]
["Fixed-Price Options - See Footnote 10"]
[]
["High Specification Floater: Ultra-Deepwater"]
[]
["Deepwater Expedition",null,"ship","«",1999,8500,30000,"TBA","TBA","2014-11-01","2015-07-01",695000,650000]
[null,null,null,null,null,null,null,"TBA","TBA","2015-07-01","2016-03-01",695000,695000]
[null,null,null,null,null,null,null,"TBA","TBA","2016-03-01","2016-11-01",695000,695000]
[]
["High Specification Floater: Deepwater"]
["Discoverer Seven Seas",null,"ship","«","1976/1997",7000,25000,"Indonesia","Inpex","2013-11-01","2014-01-01",500000,500000]
[]
["High Specification Floater: Harsh Environment"]
[]
["Transocean Barents","(6), (7), (19)","semi","«",2009,10000,30000,"NNS","DNO","2014-10-01","2016-07-01",560000,560000]
["Transocean Spitsbergen"," (6), (7), (18)","semi","«",2010,10000,30000,"NNS","Statoil","2015-07-01","2017-07-01",547000,533000]
["Transocean Leader","(6), (7)","semi",null,"1987/1997",4500,25000,"NNS","Statoil","2015-03-01","2016-03-01",417000,400000]
["Transocean Arctic"," (6), (7)","semi",null,1986,1650,25000,"NNS","Rig Management Norway","2014-07-01","2014-08-01",428000,410000]
[null,"(6), (7)",null,null,null,null,null,"NNS","Rig Management Norway","2014-11-01","2015-08-01",428000,428000]
[]
["High Specification Jackups "]
[]
["GSF Constellation II",null,null,null,2004,400,30000,"Gabon","Total","2015-06-01","2016-06-01",160000,109000]
[]
["Revenue Efficiency - See Footnote 23"]
["Revenue efficiency is defined as actual contract drilling revenues for the measurement period divided by the maximum revenue calculated for the measurement period, expressed as a percentage.  Maximum revenue is defined as the greatest amount of contract drilling revenues the drilling unit could earn for the measurement period, excluding amounts related to incentive provisions. Revenue Efficiency does not apply during Out of Service Days (Shipyard, Mobilizations, Demobilizations, Contract Preparation)."]
[]
[null,null,"Q3 2012 Actual","Q2 2012 Actual","Q1 2012 Actual","Q4 2011 Actual","Q3 2011 Actual","Q2 2011 Actual","Q1 2011 Actual","Q4 2010 Actual"]
["Ultra Deepwater",null,0.95899999999999996,0.92400000000000004,0.89,0.89556244743569613,0.86512536368209481,0.89621906930352424,0.85599999999999998,0.88500000000000001]
["Deepwater",null,0.96099999999999997,0.94499999999999995,0.83099999999999996,0.89659052070760925,0.89358643991008901,0.95604489948920834,0.88900000000000001,0.89100000000000001]
["Harsh Environment Floaters",null,0.95399999999999996,0.97899999999999998,0.97799999999999998,0.98015254351186076,0.94435554959374524,0.98423150963045558,0.99199999999999999,0.96099999999999997]
["Midwater Floaters",null,0.90400000000000003,0.88200000000000001,0.90600000000000003,0.95385325533334342,0.91590696769577751,0.92859456151185982,0.94,0.85699999999999998]
["High Specification Jackups",null,0.97199999999999998,0.94299999999999995,0.92100000000000004,0.93400000000000005,0.96799999999999997,0.94599999999999995,0.94099999999999995,0.97699999999999998]
["Total Fleet - Continuing Operations",null,0.94899999999999995,0.92700000000000005,0.89600000000000002,0.91800000000000004,0.88900000000000001,0.92,0.89300000000000002,0.88500000000000001]
[]
["Estimated Contract Drilling Revenue can be calculated as:",null,"Paid Days on Contract * Average Contract Dayrate * Revenue Efficiency"]

{"sheet":"Footnotes","index":2,"n_rows":29,"n_cols":3,"rows_kept":29,"cut":false,"hidden":false,"merged":[[29,2,29,12],[28,2,28,13],[26,2,26,13],[4,1,4,2],[8,2,8,13],[6,2,6,13],[7,2,7,13],[9,2,9,13],[24,2,24,13],[23,2,23,13],[21,2,21,13],[22,2,22,13],[25,2,25,13],[20,2,20,13],[18,2,18,13],[10,2,10,13],[11,2,11,13],[12,2,12,13],[15,2,15,13],[19,2,19,13],[13,2,13,13],[14,2,14,13],[16,2,16,13],[17,2,17,12]]}
[]
[null,{"$f":"Report!A2","v":"Updated: January 17, 2013"}]
[null,{"$f":"Report!A3","v":"Revisions Noted in Bold"}]
[]
[null,"Footnotes"]
["Prev"]
["(1)","(1)","Dates shown are the original service date and the date of the most recent upgrade, if any."]
["(2)","(2)","Estimated Contract Start and Estimated Expiration Dates are calculated as follows: (1) for events estimated to occur between the 1st and 15th of a month, the previous month is reported (i.e. a contract which is estimated to commence on May 4, 2011 will be reported as commencing in April 2011) and (2) for events estimated to occur between the 16th and the end of a month, the actual month is reported (i.e. a contract which is estimated to commence on May 24, 2011 will be reported as commencing in May 2011).  Expiration dates represent the company's current estimate of the earliest date the contract for each rig is likely to expire. Some rigs have two or more contracts in continuation, so the last line shows the estimated earliest availability. Many contracts permit the customer to extend the contract.  "]
["(3)","(3)","Represents the full operating dayrate, although the average dayrate over the term of the contract will be lower and could be substantially lower. Does not reflect incentive programs which are typically based on the rig's operating performance against a performance curve. Please refer to the “Customer Contract Duration and Dayrates and Risks Associated with Operations” section of the Disclaimers & Definitions for a description of dayrates.  This column may not reflect the rate currently being received under the contract as a result of an applicable standby rate or other rate, which typically is less than the contract dayrate."]
["(4)","(4)","The out of service time represents those days where a rig is scheduled to be out of service and not be available to earn an operating dayrate. Please refer to the “Out of Service Days (Shipyards, Mobilizations, Demobilizations, Contract Preparation)” section of the Disclaimers & Definitions for a full description.  "]
["(5)","(5)","Estimated Average Contract Dayrate is defined as the average contracted full operating dayrate to be earned per revenue earning day. See note (3) for definition of full operating dayrate."]
["(6)","(6)","Reflects the current contracted dayrate which could reflect prior cost escalations and could change in the future due to further cost escalations."]
["(7)","(7)","Reflects the current contracted dayrate which is comprised of a foreign currency component and which could change due to foreign exchange adjustments."]
["(8)","(8)","Current contract provides for a bonus incentive opportunity not reflected in the stated current contract dayrate."]
["(9)","(9)","For the period of time that this rig is contracted to Applied Drilling Technology International, the drilling management services division of the company's U.K. operating subsidiary, accounting rules require that we eliminate the revenues and costs related to those contracts from the contract drilling segment of the consolidated statement of operations.  Revenues from turnkey contracts will be recognized in other revenues and are contingent upon successful completion of the well program."]
["(10)","(10)","Fixed price options may be exercised at the customer’s discretion. During periods when dayrates on new contracts are increasing relative to existing contracts, the likelihood of customers’ exercising fixed price options increases. During periods when dayrates on new contracts are decreasing relative to existing contracts, the likelihood of customers’ exercising fixed price options declines."]
["(11)","(11)","The contract is expected to start in the quarter indicated.  Factors that could influence the contract start date include shipyard delivery, customer acceptance, and mobilization to operating location, among others."]
[null,"(12)","The rig's planned out of service time extends into the first quarter of 2014:  Transocean John Shaw - 79 days, GSF Grand Banks - 99 days and GSF Monitor - 29 days."]
["(14)","(13)","Until August 2012, the contract dayrate was $469,000, subject to cost escalation. The dayrate for the remainder of the contract is linked to the standard West Texas Intermediate crude oil price with a floor of $40 per barrel resulting in a contract dayrate of $400,000 and a ceiling of $70 per barrel resulting in a contract dayrate of $500,000, subject to cost escalation."]
["(15)","(14)","The rig is owned by a joint venture in which the company owns less than a 100 percent interest.  Dayrate reflects 100 percent of the contract rate."]
["(16)","(15)","The customer may elect to have the operating dayrate for the last five years of the contract fluctuate based on crude oil price with a floor of $458,250 corresponding to a crude oil price of less than or equal to $50 per barrel, and a ceiling of $558,250 corresponding to a crude oil price of $100 per barrel or greater. "]
["(20)","(16)","Dayrate excludes tax amounts, to be determined, for which Transocean will be reimbursed."]
["(21)","(17)","While the customer has the option to add any out of service days to the end of the contract, the Estimated Expiration Date does not reflect any extension due to this option until actually exercised by the customer."]
["(24)","(18)","Dayrate excludes additional premiums for parallel operations at well centers and dynamic position operations."]
["(25)","(19)","Dayrate excludes additional premiums for parallel operations at well centers, dynamic position operations and HPHT operations.  Reduced dayrate will apply up to a maximum of 200 days for operation in water depths less or equal to 500 meters."]
["(26)","(20)","The contract guarantees a minimum of 240 days at this dayrate which applies for drilling HPHT wells.  The dayrate will become $265,000 if the rig drills standard wells."]
["(27)","(21)","As a result of the requirement for third party certification of well control equipment on rigs operating in the U.S. Gulf of Mexico, and potential future requirements imposed by our customers, other regulators, and industry standards, Transocean preemptively embarked on a well control equipment certification program in 2010.  We have acquired third party certification of well control equipment on 41 of our 64 active floaters, including 24 of 27 of our ultra deepwater rigs.  All of the rigs currently operating in the Gulf of Mexico have been certified to meet existing regulatory and customer requirements.  Rigs that move between locations or customers may require additional well control equipment certification even if the rigs meet Transocean’s certification program, current customer or regulatory requirements. In 2013, the following floaters are planned to conduct extensive well control equipment overhaul during their out of service period:  Sedco 702, Sedco 711, GSF Grand Banks, GSF Development Driller I, Transocean Searcher, Transocean John Shaw, Sedco 704, Sedco 707, M.G. Hulme, Jr, Sedco 712 and GSF Rig 135."]
[null,"(22)","Construction of the Deepwater Asgard is expected to be completed in the first quarter of 2014 followed by sea trials and mobilization."]
[null,"(23)","Revenue efficiency is defined as actual contract drilling revenues divided by the maximum revenue, expressed as a percentage. Maximum revenue is defined as the greatest amount of contract drilling revenues the drilling unit could earn for the measurement period, excluding amounts related to incentive provisions. (Previously, maximum revenues included incentive provisions.) For the historical periods presented, the increase in revenue efficiency averaged approximately 0.4 percent per quarter. Also, contract backlog, which excludes incentive provisions, represents the basis for maximum revenues."]

{"sheet":"Stacked&Idle","index":3,"n_rows":173,"n_cols":10,"rows_kept":173,"cut":false,"hidden":false,"merged":[[2,0,2,11],[28,0,28,15]]}
[]
[{"$f":"Report!A2","v":"Updated: January 17, 2013"}]
[{"$f":"Report!A3","v":"Revisions Noted in Bold"}]
[]
["Stacked Rigs"]
["Rig Type/Name","Start Date"]
["Deepwater (3)"]
[]
["Sedco 709","Prior to 2010"]
["Transocean Richardson","2011-03-15"]
["Sovereign Explorer","2010-11-01"]
[]
["Midwater Floaters (6)"]
[]
["Sedco 700","Prior to 2010"]
["C. Kirk Rhein, Jr.","Prior to 2010"]
["GSF Aleutian Key","2010-01-09"]
["Sedco 703","Prior to 2010"]
["Sedco 601","2011-04-09"]
["J.W. McLean","2011-04-13"]
[]
["Idle Rigs"]
["Rig Type/Name","Start Date"]
["Midwater Floaters (1)"]
[]
["GSF Arctic I","2013-01-01"]
[]
["Stacked and Idle rigs detailed above are not currently operating on contract.  Start date denotes when rig commences idle or stacked status."]
["An \"Idle\" rig is between contracts, readily available for  operations, and operating costs are typically at or near normal levels.  A \"Stacked\" rig, on the other hand, is manned by a reduced crew or unmanned and typically has reduced operating costs and is (i) preparing for an extended period of inactivity, (ii) expected to continue to be inactive for an extended period, or (iii) completing a period of extended inactivity.  However, stacked rigs will continue to incur operating costs at or above normal operating costs for 30 to 60 days following initiation of stacking."]
[]
[]
[]
[]
[]
[]
[]
[]
[]
[]
[]
[]
[]
[]
[]
[]
[]
[]
[]
[]
[]
[]
[]
[]
[]
[]
[]
[]
[]
[]
[]
[]
[]
[]
[]
[]
[]
[]
[]
[]
[]
[]
[]
[]
[]
[]
[]
[]
[]
[]
[]
[]
[]
[]
[]
[]
[]
[]
[]
[]
[]
[]
[]
[]
[]
[]
[]
[]
[]
[]
[]
[]
[]
[]
[]
[]
[]
[]
[]
[]
[]
[]
[]
[]
[]
[]
[]
[]
[]
[]
[]
[]
[]
[]
[]
[]
[]
[]
[]
[]
[]
[]
[]
[]
[]
[]
[]
[]
[]
[]
[]
[]
[]
[]
[]
[]
[]
[]
[]
[]
[]
[]
[]
[]
[]
[]
[]
[]
[]
[]
[]
[]
[]
[]
[]
[]
[]
[]
[]
[]
[]
[]
[null,null,null,null,null,null,null,null,null,"2013-06-01"]
[null,null,null,null,null,null,null,null,{"$f":"+J172","v":"2013-06-01"},"2013-09-01"]

{"sheet":"Disclaimers&Definitions ","index":4,"n_rows":3,"n_cols":1,"rows_kept":3,"cut":false,"hidden":false,"merged":[[2,0,2,11]]}
[" "]
[]
["DISCLAIMERS & DEFINITIONS"]